Body_Name,Body,Service_Area_Categorisation,Expense_Type,Expense_Code,Invoice_Date,Transaction_Number,Amount,Supplier_Name,Supplier_ID
Melton Borough Council,http://statistics.data.gov.uk/doc/local-authority/31UG,Development Control,Wages-Agency Staff,340,01/07/2019,80084,1440,Toby Ebbs Consultant,20432
Melton Borough Council,http://statistics.data.gov.uk/doc/local-authority/31UG,Me and My Learning,Electricity,630,02/07/2019,24229,586.77,EDF Energy 1 Limited,10416
Melton Borough Council,http://statistics.data.gov.uk/doc/local-authority/31UG,Phoenix House,Electricity,472,02/07/2019,24229,586.78,EDF Energy 1 Limited,10416
Melton Borough Council,http://statistics.data.gov.uk/doc/local-authority/31UG,Corporate Repairs & Maintenance (General Expenses),Responsive Repairs,477,19/07/2019,80619,950,Sheltons,10743
Melton Borough Council,http://statistics.data.gov.uk/doc/local-authority/31UG,Corporate Repairs & Maintenance (General Expenses),Responsive Repairs,477,24/07/2019,80756,3500,Sheltons,10743
Melton Borough Council,http://statistics.data.gov.uk/doc/local-authority/31UG,Environmental Health,Professional Fees-(Excl.Employees),5,07/07/2019,78033,416.66,Midland Environmental Contracts,20226
Melton Borough Council,http://statistics.data.gov.uk/doc/local-authority/31UG,Parkside,Window Cleaning,470,26/07/2019,80539,750,Ultra Clean,20477
Melton Borough Council,http://statistics.data.gov.uk/doc/local-authority/31UG,Parkside,Metered Water Charges,470,16/07/2019,24541,1152.88,Water Plus Ltd,20537
Melton Borough Council,http://statistics.data.gov.uk/doc/local-authority/31UG,Homelessness,Bed & Breakfast Costs,410,08/07/2019,80615,455,Victoria Hotel Ltd,21150
Melton Borough Council,http://statistics.data.gov.uk/doc/local-authority/31UG,Capital Receipts - Unapplied,Transfer from Other Accounts,950,04/07/2019,24375,37815.24,Ministry of Housing Communities and Local Government,21541
Melton Borough Council,http://statistics.data.gov.uk/doc/local-authority/31UG,Public Conveniences,Annual Mntnce/Serv.Agreements,40,05/07/2019,79965,975.58,aAFD Services Ltd,22939
Melton Borough Council,http://statistics.data.gov.uk/doc/local-authority/31UG,Public Conveniences,Annual Mntnce/Serv.Agreements,40,05/07/2019,79965,975.59,aAFD Services Ltd,22939
Melton Borough Council,http://statistics.data.gov.uk/doc/local-authority/31UG,Open Spaces (General Expenses),Cleansing Contractor,70,14/07/2019,79837,285,aAFD Services Ltd,22939
Melton Borough Council,http://statistics.data.gov.uk/doc/local-authority/31UG,Open Spaces (General Expenses),Cleansing Contractor,70,14/07/2019,79837,1050,aAFD Services Ltd,22939
Melton Borough Council,http://statistics.data.gov.uk/doc/local-authority/31UG,Waste Management,Disposal Costs - Street Sweeping,50,06/07/2019,24348,207.9,Selby's Garage (Woodhouse) Limited,10733
Melton Borough Council,http://statistics.data.gov.uk/doc/local-authority/31UG,Waste Management,Transportation Costs,50,06/07/2019,24348,300,Selby's Garage (Woodhouse) Limited,10733
Melton Borough Council,http://statistics.data.gov.uk/doc/local-authority/31UG,Waste Management,Transportation Costs,50,15/07/2019,24440,900,Selby's Garage (Woodhouse) Limited,10733
Melton Borough Council,http://statistics.data.gov.uk/doc/local-authority/31UG,Waste Management,Disposal Costs - Street Sweeping,50,15/07/2019,24440,212.52,Selby's Garage (Woodhouse) Limited,10733
Melton Borough Council,http://statistics.data.gov.uk/doc/local-authority/31UG,Environmental Maintenance,Petrol - Purchases,507,15/07/2019,24418,466.42,Fuel Card Services Ltd,14878
Melton Borough Council,http://statistics.data.gov.uk/doc/local-authority/31UG,Council Tax Collection,Empty Homes Inspections,680,05/07/2019,24199,2479.16,Capacity Grid,13474
Melton Borough Council,http://statistics.data.gov.uk/doc/local-authority/31UG,Homelessness,Bed & Breakfast Costs,410,11/07/2019,24369,1620,Charnwood Regency,23535
Melton Borough Council,http://statistics.data.gov.uk/doc/local-authority/31UG,Phoenix House,Telephone (incl Cost),472,12/07/2019,80107/10/11,54.98,Lloyds IP,13697
Melton Borough Council,http://statistics.data.gov.uk/doc/local-authority/31UG,Me and My Learning,Internet Charges,630,12/07/2019,80107/10/11,557.2,Lloyds IP,13697
Melton Borough Council,http://statistics.data.gov.uk/doc/local-authority/31UG,Town Area Community Centres,Internet Charges,101,12/07/2019,80107/10/11,187.5,Lloyds IP,13697
Melton Borough Council,http://statistics.data.gov.uk/doc/local-authority/31UG,Parkside,Wages-Agency Staff,470,02/07/2019,80504,182.28,BrightWhite Cleaning Ltd,22712
Melton Borough Council,http://statistics.data.gov.uk/doc/local-authority/31UG,Parkside,Wages-Agency Staff,470,02/07/2019,80504,227.85,BrightWhite Cleaning Ltd,22712
Melton Borough Council,http://statistics.data.gov.uk/doc/local-authority/31UG,Parkside,Wages-Agency Staff,470,02/07/2019,80504,182.28,BrightWhite Cleaning Ltd,22712
Melton Borough Council,http://statistics.data.gov.uk/doc/local-authority/31UG,Parkside,Wages-Agency Staff,470,02/07/2019,80504,182.28,BrightWhite Cleaning Ltd,22712
Melton Borough Council,http://statistics.data.gov.uk/doc/local-authority/31UG,Housing Revenue Account,Wages-Agency Staff,430,03/07/2019,24227,938.85,Eden Brown Ltd,14045
Melton Borough Council,http://statistics.data.gov.uk/doc/local-authority/31UG,Housing Revenue Account,Wages-Agency Staff,430,10/07/2019,80703,1166.45,Eden Brown Ltd,14045
Melton Borough Council,http://statistics.data.gov.uk/doc/local-authority/31UG,Housing Revenue Account,Wages-Agency Staff,430,17/07/2019,80703,1152.23,Eden Brown Ltd,14045
Melton Borough Council,http://statistics.data.gov.uk/doc/local-authority/31UG,Housing Revenue Account,Wages-Agency Staff,430,24/07/2019,80703,1166.45,Eden Brown Ltd,14045
Melton Borough Council,http://statistics.data.gov.uk/doc/local-authority/31UG,Homelessness,Bed & Breakfast Costs,410,15/07/2019,80615,455,Victoria Hotel Ltd,21150
Melton Borough Council,http://statistics.data.gov.uk/doc/local-authority/31UG,Corporate & Democratic Core,Mayors Expenses,646,09/07/2019,80514,599,Jays Real Food Company Ltd,23473
Melton Borough Council,http://statistics.data.gov.uk/doc/local-authority/31UG,Corporate Repairs & Maintenance (General Expenses),Responsive Repairs,477,09/07/2019,80096/97/80528,3488,AllDrains Services,23283
Melton Borough Council,http://statistics.data.gov.uk/doc/local-authority/31UG,Corporate Repairs & Maintenance (General Expenses),Responsive Repairs,477,09/07/2019,80096/97/80528,350,AllDrains Services,23283
Melton Borough Council,http://statistics.data.gov.uk/doc/local-authority/31UG,Corporate Repairs & Maintenance (General Expenses),Responsive Repairs,477,09/07/2019,80096/97/80528,1401.47,AllDrains Services,23283
Melton Borough Council,http://statistics.data.gov.uk/doc/local-authority/31UG,Corporate Services,Computer Equip Software Maintenance,810,05/07/2019,80075,977.77,Oracle Corporation UK Limited,10629
Melton Borough Council,http://statistics.data.gov.uk/doc/local-authority/31UG,Corporate Services,Computer Equip Software Maintenance,810,05/07/2019,80075,2796.86,Oracle Corporation UK Limited,10629
Melton Borough Council,http://statistics.data.gov.uk/doc/local-authority/31UG,Housing Revenue Account,Contract Work,430,10/07/2019,24316,675,Gutterskype,10182
Melton Borough Council,http://statistics.data.gov.uk/doc/local-authority/31UG,Fixed Assets,Works - Contractors,900,09/07/2019,80633,2064.75,Renuvo,10696
Melton Borough Council,http://statistics.data.gov.uk/doc/local-authority/31UG,Current Assets,Amount Due this year,925,09/07/2019,80633,-124,Renuvo,10696
Melton Borough Council,http://statistics.data.gov.uk/doc/local-authority/31UG,Fixed Assets,Works - Contractors,900,09/07/2019,80428,3022.75,Renuvo,10696
Melton Borough Council,http://statistics.data.gov.uk/doc/local-authority/31UG,Current Assets,Amount Due this year,925,09/07/2019,80428,-180,Renuvo,10696
Melton Borough Council,http://statistics.data.gov.uk/doc/local-authority/31UG,Housing Revenue Account,Contract Work,430,11/07/2019,80723,2135,Renuvo,10696
Melton Borough Council,http://statistics.data.gov.uk/doc/local-authority/31UG,Current Assets,Amount Due this year,925,11/07/2019,80723,-300,Renuvo,10696
Melton Borough Council,http://statistics.data.gov.uk/doc/local-authority/31UG,Current Assets,Amount Due this year,925,11/07/2019,80477,-180,Renuvo,10696
Melton Borough Council,http://statistics.data.gov.uk/doc/local-authority/31UG,Fixed Assets,Works - Contractors,900,11/07/2019,80477,3022.75,Renuvo,10696
Melton Borough Council,http://statistics.data.gov.uk/doc/local-authority/31UG,Current Assets,Amount Due this year,925,18/07/2019,80429,-190,Renuvo,10696
Melton Borough Council,http://statistics.data.gov.uk/doc/local-authority/31UG,Fixed Assets,Works - Contractors,900,18/07/2019,80429,3078.75,Renuvo,10696
Melton Borough Council,http://statistics.data.gov.uk/doc/local-authority/31UG,Fixed Assets,Works - Contractors,900,18/07/2019,80751,1622.75,Renuvo,10696
Melton Borough Council,http://statistics.data.gov.uk/doc/local-authority/31UG,Current Assets,Amount Due this year,925,18/07/2019,80751,-100,Renuvo,10696
Melton Borough Council,http://statistics.data.gov.uk/doc/local-authority/31UG,Current Assets,Amount Due this year,925,02/07/2019,79826,-6,Homesure,13597
Melton Borough Council,http://statistics.data.gov.uk/doc/local-authority/31UG,Fixed Assets,Works - Contractors,900,02/07/2019,79826,494.15,Homesure,13597
Melton Borough Council,http://statistics.data.gov.uk/doc/local-authority/31UG,Fixed Assets,Works - Contractors,900,08/07/2019,79975,2764.41,Homesure,13597
Melton Borough Council,http://statistics.data.gov.uk/doc/local-authority/31UG,Current Assets,Amount Due this year,925,08/07/2019,79975,-48,Homesure,13597
Melton Borough Council,http://statistics.data.gov.uk/doc/local-authority/31UG,Current Assets,Amount Due this year,925,15/07/2019,79757,-6,Homesure,13597
Melton Borough Council,http://statistics.data.gov.uk/doc/local-authority/31UG,Fixed Assets,Works - Contractors,900,15/07/2019,79757,432.43,Homesure,13597
Melton Borough Council,http://statistics.data.gov.uk/doc/local-authority/31UG,Communications,Training Course Fees,840,05/07/2019,80612,750,Leach Consulting & Associates Ltd,22226
Melton Borough Council,http://statistics.data.gov.uk/doc/local-authority/31UG,Housing Revenue Account,Mains Gas,430,09/07/2019,24301,664.85,Corona Energy Retail 4 Limited,10367
Melton Borough Council,http://statistics.data.gov.uk/doc/local-authority/31UG,Parkside,Mains Gas,470,09/07/2019,24300,849.55,Corona Energy Retail 4 Limited,10367
Melton Borough Council,http://statistics.data.gov.uk/doc/local-authority/31UG,Housing Revenue Account,Mains Gas,430,09/07/2019,24303,688.71,Corona Energy Retail 4 Limited,10367
Melton Borough Council,http://statistics.data.gov.uk/doc/local-authority/31UG,Housing Revenue Account,Mains Gas,430,09/07/2019,24302,1044.09,Corona Energy Retail 4 Limited,10367
Melton Borough Council,http://statistics.data.gov.uk/doc/local-authority/31UG,Housing Revenue Account,Mains Gas,430,09/07/2019,24302,244.92,Corona Energy Retail 4 Limited,10367
Melton Borough Council,http://statistics.data.gov.uk/doc/local-authority/31UG,Housing Revenue Account,Contract Work,430,04/07/2019,80405,952,Fire Proof Ltd,20759
Melton Borough Council,http://statistics.data.gov.uk/doc/local-authority/31UG,Housing Revenue Account,Contract Work,430,11/07/2019,80405,952,Fire Proof Ltd,20759
Melton Borough Council,http://statistics.data.gov.uk/doc/local-authority/31UG,Homelessness,Bed & Breakfast Costs,410,22/07/2019,80615,455,Victoria Hotel Ltd,21150
Melton Borough Council,http://statistics.data.gov.uk/doc/local-authority/31UG,Housing Revenue Account,Contract Work,430,05/07/2019,80604,500,Leicestershire County  Council,10493
Melton Borough Council,http://statistics.data.gov.uk/doc/local-authority/31UG,Land Charges,Professional Fees-(Excl.Employees),580,15/07/2019,24583,1276,Leicestershire County  Council,10493
Melton Borough Council,http://statistics.data.gov.uk/doc/local-authority/31UG,Current Assets,Recharges to Other Accounts,925,10/07/2019,24245,4950.63,HMRC,10185
Melton Borough Council,http://statistics.data.gov.uk/doc/local-authority/31UG,Development Control,Wages-Agency Staff,340,09/07/2019,80788,1598.5,Matchtech Group UK Ltd,23580
Melton Borough Council,http://statistics.data.gov.uk/doc/local-authority/31UG,Development Control,Wages-Agency Staff,340,09/07/2019,80788,1932,Matchtech Group UK Ltd,23580
Melton Borough Council,http://statistics.data.gov.uk/doc/local-authority/31UG,Development Control,Wages-Agency Staff,340,09/07/2019,80809,1700,Matchtech Group UK Ltd,23580
Melton Borough Council,http://statistics.data.gov.uk/doc/local-authority/31UG,Development Control,Wages-Agency Staff,340,09/07/2019,80809,1700,Matchtech Group UK Ltd,23580
Melton Borough Council,http://statistics.data.gov.uk/doc/local-authority/31UG,Housing Revenue Account,Professional Fees-(Excl.Employees),430,03/07/2019,79683,750,Venn Group Limited,13215
Melton Borough Council,http://statistics.data.gov.uk/doc/local-authority/31UG,Current Assets,Recharges to Other Accounts,925,01/07/2019,80617,547,Sodexo Motivation Solutions UK Ltd,10634
Melton Borough Council,http://statistics.data.gov.uk/doc/local-authority/31UG,Corporate Repairs & Maintenance (General Expenses),Planned Maintenance,477,07/07/2019,80250,836,Christopher Hare,10341
Melton Borough Council,http://statistics.data.gov.uk/doc/local-authority/31UG,Corporate Services,Professional Fees-(Excl.Employees),810,08/07/2019,24423,915,Hinckley & Bosworth B C,10211
Melton Borough Council,http://statistics.data.gov.uk/doc/local-authority/31UG,Information Technology,System Maintenance,815,12/07/2019,79743,1539.39,Hinckley & Bosworth B C,10211
Melton Borough Council,http://statistics.data.gov.uk/doc/local-authority/31UG,Information Technology,PC & Mobile Equipment,815,12/07/2019,79909,8600,Hinckley & Bosworth B C,10211
Melton Borough Council,http://statistics.data.gov.uk/doc/local-authority/31UG,Communications,Professional Fees-(Excl.Employees),840,12/07/2019,80195,1298,Hinckley & Bosworth B C,10211
Melton Borough Council,http://statistics.data.gov.uk/doc/local-authority/31UG,Information Technology,Microsoft Licensing,815,12/07/2019,80304,11688.36,Hinckley & Bosworth B C,10211
Melton Borough Council,http://statistics.data.gov.uk/doc/local-authority/31UG,Information Technology,Server Software,815,12/07/2019,80273,4715.42,Hinckley & Bosworth B C,10211
Melton Borough Council,http://statistics.data.gov.uk/doc/local-authority/31UG,Fixed Assets,Spending this year,900,12/07/2019,80392,3407.02,Hinckley & Bosworth B C,10211
Melton Borough Council,http://statistics.data.gov.uk/doc/local-authority/31UG,Information Technology,Disaster Recovery,815,12/07/2019,80214,431.27,Hinckley & Bosworth B C,10211
Melton Borough Council,http://statistics.data.gov.uk/doc/local-authority/31UG,Information Technology,WAN Costs,815,12/07/2019,80732,4577.25,Hinckley & Bosworth B C,10211
Melton Borough Council,http://statistics.data.gov.uk/doc/local-authority/31UG,Fixed Assets,Works - Contractors,900,12/07/2019,79928,1046,Hinckley & Bosworth B C,10211
Melton Borough Council,http://statistics.data.gov.uk/doc/local-authority/31UG,Information Technology,Security,815,12/07/2019,79948,2208.5,Hinckley & Bosworth B C,10211
Melton Borough Council,http://statistics.data.gov.uk/doc/local-authority/31UG,Fixed Assets,Works - Contractors,900,12/07/2019,79903,10996.24,Hinckley & Bosworth B C,10211
Melton Borough Council,http://statistics.data.gov.uk/doc/local-authority/31UG,Information Technology,Hinckley & Bosworth Borough Council,815,01/07/2019,80773,23202.25,Hinckley & Bosworth B C,10211
Melton Borough Council,http://statistics.data.gov.uk/doc/local-authority/31UG,Town Area Community Centres,Annual Mntnce/Serv.Agreements,101,15/07/2019,80736,130,Easy Open Limited,10429
Melton Borough Council,http://statistics.data.gov.uk/doc/local-authority/31UG,Parkside,Annual Mntnce/Serv.Agreements,470,15/07/2019,80736,840,Easy Open Limited,10429
Melton Borough Council,http://statistics.data.gov.uk/doc/local-authority/31UG,Cattle Market Trading Account,MM Town Estate Agreement Fee,300,01/07/2019,79981,1500,Melton Mowbray Town Estate,10568
Melton Borough Council,http://statistics.data.gov.uk/doc/local-authority/31UG,Homelessness,Lease Costs,410,01/07/2019,78898,550,Homewood Residential Lettings Ltd,15771
Melton Borough Council,http://statistics.data.gov.uk/doc/local-authority/31UG,Parkside,Electricity,470,01/07/2019,24228,5479.75,EDF Energy 1 Limited,10416
Melton Borough Council,http://statistics.data.gov.uk/doc/local-authority/31UG,Housing Revenue Account,Contract Work,430,02/07/2019,80014,870,Pete Burton Building Contractors Ltd,19588
Melton Borough Council,http://statistics.data.gov.uk/doc/local-authority/31UG,Housing Revenue Account,Contract Work,430,02/07/2019,24343,970,Pete Burton Building Contractors Ltd,19588
Melton Borough Council,http://statistics.data.gov.uk/doc/local-authority/31UG,Corporate Repairs & Maintenance (General Expenses),Responsive Repairs,477,06/07/2019,24437,448.5,Pete Burton Building Contractors Ltd,19588
Melton Borough Council,http://statistics.data.gov.uk/doc/local-authority/31UG,Corporate Management Team,Subsistence and Travelling (Training),830,15/07/2019,24382,106.5,Barclaycard GPC Commercial,10238
Melton Borough Council,http://statistics.data.gov.uk/doc/local-authority/31UG,Corporate Management Team,Subsistence and Travelling (Training),830,15/07/2019,24382,20.2,Barclaycard GPC Commercial,10238
Melton Borough Council,http://statistics.data.gov.uk/doc/local-authority/31UG,Corporate Management Team,Subsistence and Travelling (Training),830,15/07/2019,24382,123,Barclaycard GPC Commercial,10238
Melton Borough Council,http://statistics.data.gov.uk/doc/local-authority/31UG,Corporate Management Team,Subsistence and Travelling (Training),830,15/07/2019,24382,123,Barclaycard GPC Commercial,10238
Melton Borough Council,http://statistics.data.gov.uk/doc/local-authority/31UG,Corporate Improvement Team,Office Furniture,835,15/07/2019,24382,15.72,Barclaycard GPC Commercial,10238
Melton Borough Council,http://statistics.data.gov.uk/doc/local-authority/31UG,Homelessness,Other Equipment Purchase,410,15/07/2019,24382,132,Barclaycard GPC Commercial,10238
Melton Borough Council,http://statistics.data.gov.uk/doc/local-authority/31UG,Housing Revenue Account,Food/Drink Provisions,430,15/07/2019,24382,17.65,Barclaycard GPC Commercial,10238
Melton Borough Council,http://statistics.data.gov.uk/doc/local-authority/31UG,Housing Revenue Account,Conference/Seminar - Fees,430,15/07/2019,24382,135,Barclaycard GPC Commercial,10238
Melton Borough Council,http://statistics.data.gov.uk/doc/local-authority/31UG,Housing Revenue Account,Conference/Seminar - Fees,430,15/07/2019,24382,135,Barclaycard GPC Commercial,10238
Melton Borough Council,http://statistics.data.gov.uk/doc/local-authority/31UG,Housing Revenue Account,Conference/Seminar - Fees,430,15/07/2019,24382,225,Barclaycard GPC Commercial,10238
Melton Borough Council,http://statistics.data.gov.uk/doc/local-authority/31UG,Parkside,Medical/First Aid Supplies,470,15/07/2019,24382,46.65,Barclaycard GPC Commercial,10238
Melton Borough Council,http://statistics.data.gov.uk/doc/local-authority/31UG,Parkside,Civic Suite,470,15/07/2019,24382,20.97,Barclaycard GPC Commercial,10238
Melton Borough Council,http://statistics.data.gov.uk/doc/local-authority/31UG,Parkside,Civic Suite,470,15/07/2019,24382,108.16,Barclaycard GPC Commercial,10238
Melton Borough Council,http://statistics.data.gov.uk/doc/local-authority/31UG,Parkside,Civic Suite,470,15/07/2019,24382,423.99,Barclaycard GPC Commercial,10238
Melton Borough Council,http://statistics.data.gov.uk/doc/local-authority/31UG,Development Control,Public Transport & Car Parking,340,15/07/2019,24382,10.4,Barclaycard GPC Commercial,10238
Melton Borough Council,http://statistics.data.gov.uk/doc/local-authority/31UG,Homelessness,Bed & Breakfast Costs,410,15/07/2019,24382,75,Barclaycard GPC Commercial,10238
Melton Borough Council,http://statistics.data.gov.uk/doc/local-authority/31UG,Melton Lifeline,Other Equipment Purchase,420,15/07/2019,24382,48.77,Barclaycard GPC Commercial,10238
Melton Borough Council,http://statistics.data.gov.uk/doc/local-authority/31UG,Housing Revenue Account,Training Course Fees,430,15/07/2019,24382,510,Barclaycard GPC Commercial,10238
Melton Borough Council,http://statistics.data.gov.uk/doc/local-authority/31UG,Housing Revenue Account,Public Transport & Car Parking,430,15/07/2019,24382,142,Barclaycard GPC Commercial,10238
Melton Borough Council,http://statistics.data.gov.uk/doc/local-authority/31UG,Housing Revenue Account,Public Transport & Car Parking,430,15/07/2019,24382,48,Barclaycard GPC Commercial,10238
Melton Borough Council,http://statistics.data.gov.uk/doc/local-authority/31UG,Housing Revenue Account,Public Transport & Car Parking,430,15/07/2019,24382,17.5,Barclaycard GPC Commercial,10238
Melton Borough Council,http://statistics.data.gov.uk/doc/local-authority/31UG,Corporate Services,Conference/Seminar - Fees,810,15/07/2019,24382,165,Barclaycard GPC Commercial,10238
Melton Borough Council,http://statistics.data.gov.uk/doc/local-authority/31UG,Corporate Services,Public Transport & Car Parking,810,15/07/2019,24382,42.9,Barclaycard GPC Commercial,10238
Melton Borough Council,http://statistics.data.gov.uk/doc/local-authority/31UG,Corporate Services,Public Transport & Car Parking,810,15/07/2019,24382,130,Barclaycard GPC Commercial,10238
Melton Borough Council,http://statistics.data.gov.uk/doc/local-authority/31UG,Environmental Maintenance,Materials Purchased,507,15/07/2019,24382,35,Barclaycard GPC Commercial,10238
Melton Borough Council,http://statistics.data.gov.uk/doc/local-authority/31UG,Environmental Maintenance,Materials Purchased,507,15/07/2019,24382,42.55,Barclaycard GPC Commercial,10238
Melton Borough Council,http://statistics.data.gov.uk/doc/local-authority/31UG,Environmental Maintenance,Materials Purchased,507,15/07/2019,24382,44.76,Barclaycard GPC Commercial,10238
Melton Borough Council,http://statistics.data.gov.uk/doc/local-authority/31UG,Environmental Maintenance,Materials Purchased,507,15/07/2019,24382,43.34,Barclaycard GPC Commercial,10238
Melton Borough Council,http://statistics.data.gov.uk/doc/local-authority/31UG,Environmental Maintenance,Materials Purchased,507,15/07/2019,24382,67.26,Barclaycard GPC Commercial,10238
Melton Borough Council,http://statistics.data.gov.uk/doc/local-authority/31UG,Environmental Maintenance,Materials Purchased,507,15/07/2019,24382,30.97,Barclaycard GPC Commercial,10238
Melton Borough Council,http://statistics.data.gov.uk/doc/local-authority/31UG,Environmental Maintenance,Materials Purchased,507,15/07/2019,24382,30.97,Barclaycard GPC Commercial,10238
Melton Borough Council,http://statistics.data.gov.uk/doc/local-authority/31UG,Environmental Maintenance,Materials Purchased,507,15/07/2019,24382,22.41,Barclaycard GPC Commercial,10238
Melton Borough Council,http://statistics.data.gov.uk/doc/local-authority/31UG,Environmental Maintenance,Vehicles and Plant - Purchase,507,15/07/2019,24382,481.67,Barclaycard GPC Commercial,10238
Melton Borough Council,http://statistics.data.gov.uk/doc/local-authority/31UG,Environmental Maintenance,Vehicles and Plant - Purchase,507,15/07/2019,24382,1140,Barclaycard GPC Commercial,10238
Melton Borough Council,http://statistics.data.gov.uk/doc/local-authority/31UG,Environmental Maintenance,Vehicles and Plant - Purchase,507,15/07/2019,24382,1140,Barclaycard GPC Commercial,10238
Melton Borough Council,http://statistics.data.gov.uk/doc/local-authority/31UG,Environmental Maintenance,Vehicles and Plant - R & M,507,15/07/2019,24382,15.2,Barclaycard GPC Commercial,10238
Melton Borough Council,http://statistics.data.gov.uk/doc/local-authority/31UG,Environmental Maintenance,Clothing,507,15/07/2019,24382,4.99,Barclaycard GPC Commercial,10238
Melton Borough Council,http://statistics.data.gov.uk/doc/local-authority/31UG,Environmental Maintenance,Clothing,507,15/07/2019,24382,52.38,Barclaycard GPC Commercial,10238
Melton Borough Council,http://statistics.data.gov.uk/doc/local-authority/31UG,Corporate & Democratic Core,Public Transport & Car Parking,646,15/07/2019,24382,17.5,Barclaycard GPC Commercial,10238
Melton Borough Council,http://statistics.data.gov.uk/doc/local-authority/31UG,Corporate & Democratic Core,Subsistence Conference/Seminar,646,15/07/2019,24382,17.64,Barclaycard GPC Commercial,10238
Melton Borough Council,http://statistics.data.gov.uk/doc/local-authority/31UG,Communications,Computer Equip Software Maintenance,840,15/07/2019,24382,5.22,Barclaycard GPC Commercial,10238
Melton Borough Council,http://statistics.data.gov.uk/doc/local-authority/31UG,Open Spaces (Special Exps),Materials Purchased,270,15/07/2019,24382,78.02,Barclaycard GPC Commercial,10238
Melton Borough Council,http://statistics.data.gov.uk/doc/local-authority/31UG,Cemetery (Special Expenses),Materials Purchased,325,15/07/2019,24382,26,Barclaycard GPC Commercial,10238
Melton Borough Council,http://statistics.data.gov.uk/doc/local-authority/31UG,Homelessness,Other Items,410,15/07/2019,24382,28,Barclaycard GPC Commercial,10238
Melton Borough Council,http://statistics.data.gov.uk/doc/local-authority/31UG,Homelessness,Other Items,410,15/07/2019,24382,10,Barclaycard GPC Commercial,10238
Melton Borough Council,http://statistics.data.gov.uk/doc/local-authority/31UG,Homelessness,Other Charges for Services,410,15/07/2019,24382,150,Barclaycard GPC Commercial,10238
Melton Borough Council,http://statistics.data.gov.uk/doc/local-authority/31UG,Homelessness,Other Charges for Services,410,15/07/2019,24382,375,Barclaycard GPC Commercial,10238
Melton Borough Council,http://statistics.data.gov.uk/doc/local-authority/31UG,Housing Revenue Account,Other Items,430,15/07/2019,24382,154.5,Barclaycard GPC Commercial,10238
Melton Borough Council,http://statistics.data.gov.uk/doc/local-authority/31UG,Housing Revenue Account,Other Items,430,15/07/2019,24382,154.5,Barclaycard GPC Commercial,10238
Melton Borough Council,http://statistics.data.gov.uk/doc/local-authority/31UG,Parkside,Materials Purchased,470,15/07/2019,24382,18.74,Barclaycard GPC Commercial,10238
Melton Borough Council,http://statistics.data.gov.uk/doc/local-authority/31UG,Parkside,Clothing,470,15/07/2019,24382,34.98,Barclaycard GPC Commercial,10238
Melton Borough Council,http://statistics.data.gov.uk/doc/local-authority/31UG,Customer Services,Subsistence and Travelling (Training),471,15/07/2019,24382,64.5,Barclaycard GPC Commercial,10238
Melton Borough Council,http://statistics.data.gov.uk/doc/local-authority/31UG,Customer Services,Subsistence and Travelling (Training),471,15/07/2019,24382,175,Barclaycard GPC Commercial,10238
Melton Borough Council,http://statistics.data.gov.uk/doc/local-authority/31UG,Customer Services,Subsistence and Travelling (Training),471,15/07/2019,24382,78,Barclaycard GPC Commercial,10238
Melton Borough Council,http://statistics.data.gov.uk/doc/local-authority/31UG,Customer Services,Subsistence and Travelling (Training),471,15/07/2019,24382,414,Barclaycard GPC Commercial,10238
Melton Borough Council,http://statistics.data.gov.uk/doc/local-authority/31UG,Customer Services,Subsistence and Travelling (Training),471,15/07/2019,24382,167.5,Barclaycard GPC Commercial,10238
Melton Borough Council,http://statistics.data.gov.uk/doc/local-authority/31UG,Corporate Repairs & Maintenance (General Expenses),Responsive Repairs,477,15/07/2019,24382,26.45,Barclaycard GPC Commercial,10238
Melton Borough Council,http://statistics.data.gov.uk/doc/local-authority/31UG,Elections,Stationery,600,15/07/2019,24382,23.98,Barclaycard GPC Commercial,10238
Melton Borough Council,http://statistics.data.gov.uk/doc/local-authority/31UG,Parkside,Office Furniture,470,15/07/2019,24382,51.38,Barclaycard GPC Commercial,10238
Melton Borough Council,http://statistics.data.gov.uk/doc/local-authority/31UG,Corporate Management Team,Accommodation Conference/Seminar,830,15/07/2019,24382,471.9,Barclaycard GPC Commercial,10238
Melton Borough Council,http://statistics.data.gov.uk/doc/local-authority/31UG,Corporate Management Team,Accommodation Conference/Seminar,830,15/07/2019,24382,188.5,Barclaycard GPC Commercial,10238
Melton Borough Council,http://statistics.data.gov.uk/doc/local-authority/31UG,Corporate & Democratic Core,Accommodation Conference/Seminar,646,15/07/2019,24382,343.33,Barclaycard GPC Commercial,10238
Melton Borough Council,http://statistics.data.gov.uk/doc/local-authority/31UG,Commercialism,Professional Fees-(Excl.Employees),520,15/07/2019,24382,39.99,Barclaycard GPC Commercial,10238
Melton Borough Council,http://statistics.data.gov.uk/doc/local-authority/31UG,Customer Services,Ex Gratia Payments & Long Service Awards,471,15/07/2019,24382,50,Barclaycard GPC Commercial,10238
Melton Borough Council,http://statistics.data.gov.uk/doc/local-authority/31UG,Communications,Other Equipment Purchase,840,15/07/2019,24382,262,Barclaycard GPC Commercial,10238
Melton Borough Council,http://statistics.data.gov.uk/doc/local-authority/31UG,Corporate Management Team,Subsistence and Travelling (Training),830,15/07/2019,24382,136.2,Barclaycard GPC Commercial,10238
Melton Borough Council,http://statistics.data.gov.uk/doc/local-authority/31UG,Corporate Management Team,Subsistence and Travelling (Training),830,15/07/2019,24382,26.55,Barclaycard GPC Commercial,10238
Melton Borough Council,http://statistics.data.gov.uk/doc/local-authority/31UG,Development Control,Wages-Agency Staff,340,10/07/2019,80690,1505,G2 Recruitment Solutions,22812
Melton Borough Council,http://statistics.data.gov.uk/doc/local-authority/31UG,Housing Revenue Account,Metered Water Charges,430,12/07/2019,24442,1060.75,Severn Trent Water,10739
Melton Borough Council,http://statistics.data.gov.uk/doc/local-authority/31UG,Housing Revenue Account,Contract Work,430,18/07/2019,24422,950,H2O Utilities Limited,12812
Melton Borough Council,http://statistics.data.gov.uk/doc/local-authority/31UG,Housing Revenue Account,Mains Gas,430,02/07/2019,24294,1472.41,British Gas,10284
Melton Borough Council,http://statistics.data.gov.uk/doc/local-authority/31UG,Communities & Neighbourhoods,Debit Card Charges,876,02/07/2019,24477,623.88,Capita Business Services Limited,10321
Melton Borough Council,http://statistics.data.gov.uk/doc/local-authority/31UG,Housing Revenue Account,Debit Card Charges,430,02/07/2019,24477,267.38,Capita Business Services Limited,10321
Melton Borough Council,http://statistics.data.gov.uk/doc/local-authority/31UG,Housing Revenue Account,Wages-Agency Staff,430,18/07/2019,80287,3085.56,Michael Page International Recruitment Ltd,20327
Melton Borough Council,http://statistics.data.gov.uk/doc/local-authority/31UG,Housing Revenue Account,Electricity,430,17/07/2019,24293,49.48,British Gas,10284
Melton Borough Council,http://statistics.data.gov.uk/doc/local-authority/31UG,Housing Revenue Account,Electricity,430,17/07/2019,24293,10.66,British Gas,10284
Melton Borough Council,http://statistics.data.gov.uk/doc/local-authority/31UG,Housing Revenue Account,Electricity,430,17/07/2019,24293,14.97,British Gas,10284
Melton Borough Council,http://statistics.data.gov.uk/doc/local-authority/31UG,Housing Revenue Account,Electricity,430,17/07/2019,24293,196.1,British Gas,10284
Melton Borough Council,http://statistics.data.gov.uk/doc/local-authority/31UG,Housing Revenue Account,Electricity,430,17/07/2019,24293,329.5,British Gas,10284
Melton Borough Council,http://statistics.data.gov.uk/doc/local-authority/31UG,Housing Revenue Account,Electricity,430,17/07/2019,24293,138.04,British Gas,10284
Melton Borough Council,http://statistics.data.gov.uk/doc/local-authority/31UG,Housing Revenue Account,Electricity,430,17/07/2019,24293,60.03,British Gas,10284
Melton Borough Council,http://statistics.data.gov.uk/doc/local-authority/31UG,Housing Revenue Account,Electricity,430,17/07/2019,24293,23.22,British Gas,10284
Melton Borough Council,http://statistics.data.gov.uk/doc/local-authority/31UG,Housing Revenue Account,Electricity,430,17/07/2019,24293,75.63,British Gas,10284
Melton Borough Council,http://statistics.data.gov.uk/doc/local-authority/31UG,Housing Revenue Account,Electricity,430,17/07/2019,24293,81.02,British Gas,10284
Melton Borough Council,http://statistics.data.gov.uk/doc/local-authority/31UG,Housing Revenue Account,Electricity,430,17/07/2019,24293,73.84,British Gas,10284
Melton Borough Council,http://statistics.data.gov.uk/doc/local-authority/31UG,Housing Revenue Account,Electricity,430,17/07/2019,24293,11.17,British Gas,10284
Melton Borough Council,http://statistics.data.gov.uk/doc/local-authority/31UG,Housing Revenue Account,Electricity,430,17/07/2019,24293,8.29,British Gas,10284
Melton Borough Council,http://statistics.data.gov.uk/doc/local-authority/31UG,Housing Revenue Account,Electricity,430,17/07/2019,24293,11.35,British Gas,10284
Melton Borough Council,http://statistics.data.gov.uk/doc/local-authority/31UG,Housing Revenue Account,Electricity,430,17/07/2019,24293,46.72,British Gas,10284
Melton Borough Council,http://statistics.data.gov.uk/doc/local-authority/31UG,Housing Revenue Account,Electricity,430,17/07/2019,24293,90.16,British Gas,10284
Melton Borough Council,http://statistics.data.gov.uk/doc/local-authority/31UG,Housing Revenue Account,Electricity,430,17/07/2019,24293,63.04,British Gas,10284
Melton Borough Council,http://statistics.data.gov.uk/doc/local-authority/31UG,Housing Revenue Account,Electricity,430,17/07/2019,24293,11.75,British Gas,10284
Melton Borough Council,http://statistics.data.gov.uk/doc/local-authority/31UG,Housing Revenue Account,Electricity,430,17/07/2019,24293,25.68,British Gas,10284
Melton Borough Council,http://statistics.data.gov.uk/doc/local-authority/31UG,Housing Revenue Account,Electricity,430,17/07/2019,24293,799.32,British Gas,10284
Melton Borough Council,http://statistics.data.gov.uk/doc/local-authority/31UG,Housing Revenue Account,Electricity,430,17/07/2019,24293,10.94,British Gas,10284
Melton Borough Council,http://statistics.data.gov.uk/doc/local-authority/31UG,Town Area Community Centres,Electricity,101,17/07/2019,24293,45.6,British Gas,10284
Melton Borough Council,http://statistics.data.gov.uk/doc/local-authority/31UG,Electoral Registration,Printing,560,12/07/2019,24481,1828.25,Print.uk.com,10677
Melton Borough Council,http://statistics.data.gov.uk/doc/local-authority/31UG,Allotments (Special Expenses),Metered Water Charges,330,02/07/2019,24221,-482.33,Water Plus Ltd,20537
Melton Borough Council,http://statistics.data.gov.uk/doc/local-authority/31UG,Allotments (Special Expenses),Metered Water Charges,330,02/07/2019,24220,600.47,Water Plus Ltd,20537
Melton Borough Council,http://statistics.data.gov.uk/doc/local-authority/31UG,Housing Revenue Account,Other Equipment Repairs & Maintenance,430,02/07/2019,24353,6324.03,Stanley Security Solutions,10770
Melton Borough Council,http://statistics.data.gov.uk/doc/local-authority/31UG,Corporate Services,Leicester City Payroll Costs,810,09/07/2019,24433,2875.5,Leicester City  Council,10457
Melton Borough Council,http://statistics.data.gov.uk/doc/local-authority/31UG,Local Plans,Local Plan,345,12/07/2019,80698,459.61,Reach Marketing Communications,10694
Melton Borough Council,http://statistics.data.gov.uk/doc/local-authority/31UG,Communications,Training Course Fees,840,08/07/2019,24548,520.8,Rutland County Council,10710
Melton Borough Council,http://statistics.data.gov.uk/doc/local-authority/31UG,NNDR Collection,Rateable Value Analysis,660,03/07/2019,79716,1000,Inform CPI Ltd,14797
Melton Borough Council,http://statistics.data.gov.uk/doc/local-authority/31UG,Current Assets,Amount Due this year,925,08/07/2019,24342,4.88,Pitney Bowes,15685
Melton Borough Council,http://statistics.data.gov.uk/doc/local-authority/31UG,Corporate & Democratic Core,Postages General,646,08/07/2019,24342,175.5,Pitney Bowes,15685
Melton Borough Council,http://statistics.data.gov.uk/doc/local-authority/31UG,Current Assets,Amount Due this year,925,08/07/2019,24342,2000,Pitney Bowes,15685
Melton Borough Council,http://statistics.data.gov.uk/doc/local-authority/31UG,Housing Revenue Account,Contract Work,430,01/07/2019,80540,790,Thyssenkrupp Elevator UK Ltd,10812
Melton Borough Council,http://statistics.data.gov.uk/doc/local-authority/31UG,Housing Revenue Account,Professional Fees-(Excl.Employees),430,23/07/2019,80431,-4140,Trenton Fire Ltd,23444
Melton Borough Council,http://statistics.data.gov.uk/doc/local-authority/31UG,Homelessness,Bed & Breakfast Costs,410,09/07/2019,80625,2565,Quorn Lodge Hotel,10687
Melton Borough Council,http://statistics.data.gov.uk/doc/local-authority/31UG,Homelessness,Bed & Breakfast Costs,410,09/07/2019,80626,800,Quorn Lodge Hotel,10687
Melton Borough Council,http://statistics.data.gov.uk/doc/local-authority/31UG,Homelessness,Bed & Breakfast Costs,410,09/07/2019,80626,2175,Quorn Lodge Hotel,10687
Melton Borough Council,http://statistics.data.gov.uk/doc/local-authority/31UG,Homelessness,Bed & Breakfast Costs,410,16/07/2019,80748,900,Quorn Lodge Hotel,10687
Melton Borough Council,http://statistics.data.gov.uk/doc/local-authority/31UG,Homelessness,Bed & Breakfast Costs,410,08/07/2019,80491,765,Croft Hotel,17541
Melton Borough Council,http://statistics.data.gov.uk/doc/local-authority/31UG,Homelessness,Bed & Breakfast Costs,410,08/07/2019,80491,408,Croft Hotel,17541
Melton Borough Council,http://statistics.data.gov.uk/doc/local-authority/31UG,Homelessness,Bed & Breakfast Costs,410,31/07/2019,80623,1173,Croft Hotel,17541
Melton Borough Council,http://statistics.data.gov.uk/doc/local-authority/31UG,Housing Revenue Account,Other Grant Schemes,430,19/07/2019,24379,500,TFEC Tenants' Forum Executive Comm Budget Acc,10803
Melton Borough Council,http://statistics.data.gov.uk/doc/local-authority/31UG,Revenue Expenditure Funded From Capital Under Statute,Grants/Advances,910,23/07/2019,80778,75950.5,Blaby District Council,10263
Melton Borough Council,http://statistics.data.gov.uk/doc/local-authority/31UG,Private Sector Housing Renewal,Blaby DC DFG Lightbulb Costs,400,23/07/2019,80779,6387,Blaby District Council,10263
Melton Borough Council,http://statistics.data.gov.uk/doc/local-authority/31UG,Housing Revenue Account,Professional Fees-(Excl.Employees),430,05/07/2019,80431,4140,Trenton Fire Ltd,23444
Melton Borough Council,http://statistics.data.gov.uk/doc/local-authority/31UG,Housing Revenue Account,Contract Work,430,11/07/2019,80635,3115,Trenton Fire Ltd,23444
Melton Borough Council,http://statistics.data.gov.uk/doc/local-authority/31UG,Welland Procurement Unit,Medical Examination Fees,476,11/07/2019,80560/471/653/561/614/470,6.7,Health Management Limited,10207
Melton Borough Council,http://statistics.data.gov.uk/doc/local-authority/31UG,Legal Services,Medical Examination Fees,845,11/07/2019,80560/471/653/561/614/470,295,Health Management Limited,10207
Melton Borough Council,http://statistics.data.gov.uk/doc/local-authority/31UG,Melton Lifeline,Medical Examination Fees,420,11/07/2019,80560/471/653/561/614/470,6.7,Health Management Limited,10207
Melton Borough Council,http://statistics.data.gov.uk/doc/local-authority/31UG,Customer Services,Medical Examination Fees,471,11/07/2019,80560/471/653/561/614/470,295,Health Management Limited,10207
Melton Borough Council,http://statistics.data.gov.uk/doc/local-authority/31UG,Customer Services,Medical Examination Fees,471,11/07/2019,80560/471/653/561/614/470,260,Health Management Limited,10207
Melton Borough Council,http://statistics.data.gov.uk/doc/local-authority/31UG,Environmental Maintenance,Medical Examination Fees,507,11/07/2019,80560/471/653/561/614/470,6.7,Health Management Limited,10207
Melton Borough Council,http://statistics.data.gov.uk/doc/local-authority/31UG,Corporate Services,Wages-Agency Staff,810,01/07/2019,79847,1200,Badenoch and Clark Ltd,21535
Melton Borough Council,http://statistics.data.gov.uk/doc/local-authority/31UG,Corporate Services,Wages-Agency Staff,810,01/07/2019,79847,2000,Badenoch and Clark Ltd,21535
Melton Borough Council,http://statistics.data.gov.uk/doc/local-authority/31UG,Corporate Services,Wages-Agency Staff,810,09/07/2019,79847,1200,Badenoch and Clark Ltd,21535
Melton Borough Council,http://statistics.data.gov.uk/doc/local-authority/31UG,Corporate Services,Wages-Agency Staff,810,15/07/2019,79847,1600,Badenoch and Clark Ltd,21535
Melton Borough Council,http://statistics.data.gov.uk/doc/local-authority/31UG,Corporate Services,Wages-Agency Staff,810,24/07/2019,79847,2000,Badenoch and Clark Ltd,21535
Melton Borough Council,http://statistics.data.gov.uk/doc/local-authority/31UG,Corporate Services,Wages-Agency Staff,810,31/07/2019,79847,2000,Badenoch and Clark Ltd,21535
Melton Borough Council,http://statistics.data.gov.uk/doc/local-authority/31UG,Waste Management,Disposal Costs - Green Waste,50,01/07/2019,24474,-46156.18,Biffa Waste Services Limited,10257
Melton Borough Council,http://statistics.data.gov.uk/doc/local-authority/31UG,Waste Management,Disposal Costs - Green Waste,50,01/07/2019,24474,46156.18,Biffa Waste Services Limited,10257
Melton Borough Council,http://statistics.data.gov.uk/doc/local-authority/31UG,Waste Management,New Waste Contract,50,05/07/2019,24473,2645.63,Biffa Waste Services Limited,10257
Melton Borough Council,http://statistics.data.gov.uk/doc/local-authority/31UG,Waste Management,Bin Deliveries,50,05/07/2019,24473,630,Biffa Waste Services Limited,10257
Melton Borough Council,http://statistics.data.gov.uk/doc/local-authority/31UG,Housing Revenue Account,Contract Work,430,01/07/2019,24232,800,Measures & Son Builders Ltd,21097
Melton Borough Council,http://statistics.data.gov.uk/doc/local-authority/31UG,Corporate Repairs & Maintenance (General Expenses),Responsive Repairs,477,14/07/2019,80208,2750,Measures & Son Builders Ltd,21097
Melton Borough Council,http://statistics.data.gov.uk/doc/local-authority/31UG,Environmental Maintenance,Medical Examination Fees,507,02/07/2019,80220,650,Hear4u & Healthscreen Ltd,21332
Melton Borough Council,http://statistics.data.gov.uk/doc/local-authority/31UG,Non Distributed Costs,Early Retirements:Continuing liabilities,648,12/07/2019,24580,31450.25,Leicestershire County  Council,10493
Melton Borough Council,http://statistics.data.gov.uk/doc/local-authority/31UG,Strategic Sports  & Leisure Development,Melton Sport & Health Expenditure,697,04/07/2019,24241,630,Calm For Kids,23546
Melton Borough Council,http://statistics.data.gov.uk/doc/local-authority/31UG,Current Assets,Recharges to Other Accounts,925,24/07/2019,24463,592.55,Unison L02028,10835
Melton Borough Council,http://statistics.data.gov.uk/doc/local-authority/31UG,Communications,Misc Items,840,24/07/2019,24463,-5.93,Unison L02028,10835
Melton Borough Council,http://statistics.data.gov.uk/doc/local-authority/31UG,Non Distributed Costs,Pension Lump Sum (LCC),648,24/07/2019,24462,13666.67,Leicestershire County  Council,10493
Melton Borough Council,http://statistics.data.gov.uk/doc/local-authority/31UG,Waste Management,Telephone (incl Cost),50,27/07/2019,24564,82.5,British Telecom Plc,10286
Melton Borough Council,http://statistics.data.gov.uk/doc/local-authority/31UG,Phoenix House,Telephone (incl Cost),472,27/07/2019,24564,82.5,British Telecom Plc,10286
Melton Borough Council,http://statistics.data.gov.uk/doc/local-authority/31UG,Customer Services,Telephone (incl Cost),471,27/07/2019,24564,82.5,British Telecom Plc,10286
Melton Borough Council,http://statistics.data.gov.uk/doc/local-authority/31UG,Phoenix House,Telephone (incl Cost),472,27/07/2019,24564,165,British Telecom Plc,10286
Melton Borough Council,http://statistics.data.gov.uk/doc/local-authority/31UG,7 King Street,Telephone (incl Cost),320,27/07/2019,24564,317.7,British Telecom Plc,10286
Melton Borough Council,http://statistics.data.gov.uk/doc/local-authority/31UG,Housing Revenue Account,Telephone (incl Cost),430,27/07/2019,24564,105.9,British Telecom Plc,10286
Melton Borough Council,http://statistics.data.gov.uk/doc/local-authority/31UG,Information Technology,Telephone Recharge from Telephone Hldg A/c,815,27/07/2019,24564,1450.54,British Telecom Plc,10286
Melton Borough Council,http://statistics.data.gov.uk/doc/local-authority/31UG,Information Technology,WAN Costs,815,27/07/2019,24564,590.1,British Telecom Plc,10286
Melton Borough Council,http://statistics.data.gov.uk/doc/local-authority/31UG,Environmental Maintenance,Telephone (incl Cost),507,27/07/2019,24564,247.5,British Telecom Plc,10286
Melton Borough Council,http://statistics.data.gov.uk/doc/local-authority/31UG,Housing Revenue Account,Telephone (Lifeline),430,27/07/2019,24564,577.5,British Telecom Plc,10286
Melton Borough Council,http://statistics.data.gov.uk/doc/local-authority/31UG,Housing Revenue Account,Telephone (incl Cost),430,27/07/2019,24564,165,British Telecom Plc,10286
Melton Borough Council,http://statistics.data.gov.uk/doc/local-authority/31UG,Housing Revenue Account,Telephone (incl Cost),430,27/07/2019,24564,82.5,British Telecom Plc,10286
Melton Borough Council,http://statistics.data.gov.uk/doc/local-authority/31UG,Housing Revenue Account,Telephone (incl Cost),430,27/07/2019,24564,165,British Telecom Plc,10286
Melton Borough Council,http://statistics.data.gov.uk/doc/local-authority/31UG,Housing Revenue Account,Telephone (incl Cost),430,27/07/2019,24564,165,British Telecom Plc,10286
Melton Borough Council,http://statistics.data.gov.uk/doc/local-authority/31UG,Public Conveniences,Telephone (incl Cost),40,27/07/2019,24564,82.5,British Telecom Plc,10286
Melton Borough Council,http://statistics.data.gov.uk/doc/local-authority/31UG,Open Spaces (General Expenses),Telephone (incl Cost),70,27/07/2019,24564,82.5,British Telecom Plc,10286
Melton Borough Council,http://statistics.data.gov.uk/doc/local-authority/31UG,Town Area Community Centres,Telephone (incl Cost),101,27/07/2019,24564,809.7,British Telecom Plc,10286
Melton Borough Council,http://statistics.data.gov.uk/doc/local-authority/31UG,Town Area Community Centres,Telephone (incl Cost),101,27/07/2019,24564,82.5,British Telecom Plc,10286
Melton Borough Council,http://statistics.data.gov.uk/doc/local-authority/31UG,Housing Revenue Account,Telephone (incl Cost),430,27/07/2019,24564,82.5,British Telecom Plc,10286
Melton Borough Council,http://statistics.data.gov.uk/doc/local-authority/31UG,Information Technology,Telephone (incl Cost),815,27/07/2019,24564,144.6,British Telecom Plc,10286
Melton Borough Council,http://statistics.data.gov.uk/doc/local-authority/31UG,Information Technology,Telephone (incl Cost),815,27/07/2019,24564,82.5,British Telecom Plc,10286
Melton Borough Council,http://statistics.data.gov.uk/doc/local-authority/31UG,Community Safety,Telephone (incl Cost),625,27/07/2019,24564,82.5,British Telecom Plc,10286
Melton Borough Council,http://statistics.data.gov.uk/doc/local-authority/31UG,Community Safety,WAN Costs,625,27/07/2019,24564,159.3,British Telecom Plc,10286
Melton Borough Council,http://statistics.data.gov.uk/doc/local-authority/31UG,Housing Revenue Account,Telephone Recharge from Telephone Hldg A/c,430,27/07/2019,24564,220.83,British Telecom Plc,10286
Melton Borough Council,http://statistics.data.gov.uk/doc/local-authority/31UG,Housing Revenue Account,Telephone Recharge from Telephone Hldg A/c,430,27/07/2019,24564,161.45,British Telecom Plc,10286
Melton Borough Council,http://statistics.data.gov.uk/doc/local-authority/31UG,Housing Revenue Account,Telephone Recharge from Telephone Hldg A/c,430,27/07/2019,24564,227.1,British Telecom Plc,10286
Melton Borough Council,http://statistics.data.gov.uk/doc/local-authority/31UG,Housing Revenue Account,Telephone Recharge from Telephone Hldg A/c,430,27/07/2019,24564,172.2,British Telecom Plc,10286
Melton Borough Council,http://statistics.data.gov.uk/doc/local-authority/31UG,Housing Revenue Account,Telephone Recharge from Telephone Hldg A/c,430,27/07/2019,24564,276.48,British Telecom Plc,10286
Melton Borough Council,http://statistics.data.gov.uk/doc/local-authority/31UG,Welland Wheels to Work,Other Items,627,27/07/2019,24564,186.9,British Telecom Plc,10286
Melton Borough Council,http://statistics.data.gov.uk/doc/local-authority/31UG,Communications,Postages General,840,27/07/2019,24564,82.5,British Telecom Plc,10286
Melton Borough Council,http://statistics.data.gov.uk/doc/local-authority/31UG,Phoenix House,Telephone Recharge from Telephone Hldg A/c,472,27/07/2019,24564,364.11,British Telecom Plc,10286
Melton Borough Council,http://statistics.data.gov.uk/doc/local-authority/31UG,Housing Revenue Account,Telephone (incl Cost),430,27/07/2019,24564,188.81,British Telecom Plc,10286
Melton Borough Council,http://statistics.data.gov.uk/doc/local-authority/31UG,Town Area Community Centres,WAN Costs,101,27/07/2019,24564,309.6,British Telecom Plc,10286
Melton Borough Council,http://statistics.data.gov.uk/doc/local-authority/31UG,Housing Revenue Account,Telephone (Lifeline),430,27/07/2019,24564,247.5,British Telecom Plc,10286
Melton Borough Council,http://statistics.data.gov.uk/doc/local-authority/31UG,Phoenix House,WAN Costs,472,27/07/2019,24564,227.1,British Telecom Plc,10286
Melton Borough Council,http://statistics.data.gov.uk/doc/local-authority/31UG,Waste Management,WAN Costs,50,27/07/2019,24564,227.1,British Telecom Plc,10286
Melton Borough Council,http://statistics.data.gov.uk/doc/local-authority/31UG,Environmental Maintenance,WAN Costs,507,27/07/2019,24564,144.6,British Telecom Plc,10286
Melton Borough Council,http://statistics.data.gov.uk/doc/local-authority/31UG,Town Area Community Centres,Telephone (incl Cost),101,27/07/2019,24564,144.6,British Telecom Plc,10286
Melton Borough Council,http://statistics.data.gov.uk/doc/local-authority/31UG,Parkside,Telephone (incl Cost),470,27/07/2019,24564,330,British Telecom Plc,10286
